bitfinex-derivatives/quotes_BNBF0:USTF0_20241230
["timestamp","ask_amount","ask_price","bid_price","bid_amount"]
[1735582944435,0.26089727,705.69,704.62,1.04672918]
[1735582944736,0.26089917,705.68,704.62,1.04672918]
[1735582944938,0.28340654,705.7,704.62,1.04672918]
[1735582945535,0.28340654,705.7,704.57,1.04672918]
[1735582946433,0.28340654,705.7,704.51,1.04672918]
[1735582947638,0.28340654,705.7,704.46,1.04672918]
[1735582947839,0.26093885,705.69,704.46,1.04672918]
[1735582948634,0.26093885,705.69,704.37,1.04672918]
[1735582949933,0.26097353,705.68,704.37,1.04672918]
[1735582950234,0.26097353,705.68,704.31,1.04672918]
[1735582950440,0.26097353,705.69,704.31,1.04672918]
[1735582950639,0.26097353,705.67,704.31,1.04672918]
[1735582950840,0.26097353,705.68,704.31,1.04672918]
[1735582951041,0.26097353,705.67,704.31,1.04672918]
[1735582951341,0.26097353,705.66,704.28,1.04672918]
[1735582951534,0.26097353,705.69,704.28,1.04672918]
[1735582951734,0.26097353,705.68,704.28,1.04672918]
[1735582951935,0.26097353,705.69,704.28,1.04672918]
[1735582952140,0.26097353,705.68,704.28,1.04672918]
[1735582952339,0.26097353,705.68,703.68,2.13707208]
[1735582952340,0.28340654,705.7,704.36,1.04672918]
[1735582952940,0.26095955,705.69,704.36,1.04672918]
[1735582953141,0.28340654,705.7,704.36,1.04672918]
[1735582953142,0.26095966,705.68,704.36,1.04672918]
[1735582953338,0.26095966,705.68,704.15,1.04672918]
[1735582953339,0.26095966,705.69,704.32,1.04672918]
[1735582953538,0.26095966,705.68,704.32,1.04672918]
[1735582953735,0.26095966,705.69,704.32,1.04672918]
[1735582953935,0.26095966,705.67,704.32,1.04672918]
[1735582954141,0.26095966,705.66,704.32,1.04672918]
[1735582954341,0.26095966,705.69,704.32,1.04672918]
[1735582954637,0.28341859,705.67,704.29,1.04672918]
[1735582954844,0.26095966,705.66,704.29,1.04672918]
[1735582955435,0.260957,705.65,704.29,1.04672918]
[1735582955636,0.260957,705.64,704.29,1.04672918]
[1735582955835,0.260957,705.64,704.33,1.04672918]
[1735582956039,0.28341859,705.67,704.33,1.04672918]
[1735582956040,0.260957,705.66,704.33,1.04672918]
[1735582956234,1.74227557,705.63,704.33,1.04672918]
[1735582956436,0.28344269,705.61,704.33,1.04672918]
[1735582956641,0.260957,705.6,704.33,1.04672918]
[1735582957143,0.260957,705.6,704.32,1.04672918]
[1735582957736,0.26095666,705.59,704.32,1.04672918]
[1735582958143,0.26095666,705.6,704.32,1.04672918]
[1735582958440,0.26095666,705.58,704.26,1.04672918]
[1735582958743,0.26095666,705.59,704.26,1.04672918]
[1735582958943,0.26095666,705.57,704.26,1.04672918]
[1735582959445,0.28344269,705.61,704.28,1.04672918]
[1735582959843,0.26093719,705.6,704.28,1.04672918]
[1735582960038,0.28344269,705.61,704.28,1.04672918]
[1735582960436,0.28344269,705.61,704.34,1.04672918]
[1735582961138,0.26092142,705.6,704.34,1.04672918]
[1735582961545,0.26092142,705.6,704.44,1.04672918]
[1735582962138,0.28344269,705.61,704.44,1.04672918]
[1735582962541,0.26094572,705.6,704.44,1.04672918]
[1735582962746,0.28345474,705.58,704.37,1.04672918]
[1735582963444,0.28345474,705.58,704.31,1.04672918]
[1735582964546,0.28345474,705.58,704.26,1.04672918]
[1735582965447,0.28345474,705.58,704.33,1.04672918]
[1735582966447,0.28345474,705.58,704.34,1.04672918]
[1735582967358,0.28345474,705.58,704.44,1.04672918]
[1735582968253,0.28345474,705.58,704.49,1.04672918]
[1735582969455,0.28345474,705.58,704.55,1.04672918]
[1735582970760,0.28345474,705.58,704.65,1.04672918]
[1735582971959,0.28345474,705.58,704.75,1.04672918]
[1735582972760,0.28345474,705.58,704.23,2.13707208]
[1735582972761,0.28345474,705.58,704.63,1.04672918]
[1735582974256,0.28345474,705.58,704.62,1.04672918]
[1735582975360,0.28345474,705.58,704.64,1.04672918]
[1735582976364,0.28345474,705.58,704.65,1.04672918]
[1735582977563,0.28345474,705.58,704.64,1.04672918]
[1735582978766,0.28345474,705.58,704.65,1.04672918]
[1735582979866,0.28345474,705.58,704.7,1.04672918]
[1735582980068,0.2609323,705.57,704.7,1.04672918]
[1735582981269,0.28346679,705.55,704.68,1.04672918]
[1735582981967,1.481224,705.54,704.68,1.04672918]
[1735582982163,1.481224,705.54,704.64,1.04672918]
[1735582983263,1.481224,705.54,704.67,1.04672918]
[1735582983863,0.28347885,705.52,704.68,1.04672918]
[1735582985873,0.28347885,705.52,704.69,1.04672918]
[1735582988672,0.28347885,705.52,704.76,1.04672918]
[1735582989676,0.28347885,705.52,704.88,1.04672918]
[1735582990777,0.28347885,705.52,704.9,1.04672918]
[1735582991678,0.28347885,705.52,704.8,1.04672918]
[1735582992974,0.28347885,705.52,704.81,1.04672918]
[1735582994277,0.28347885,705.52,704.83,1.04672918]
[1735582995278,0.28347885,705.52,704.81,1.04672918]
[1735582996276,0.28347885,705.52,704.68,1.04672918]
[1735582997377,0.28347885,705.52,704.69,1.04672918]
[1735582998282,0.28347885,705.52,704.64,1.04672918]
[1735582999383,0.28347885,705.52,704.62,1.04672918]
[1735583000684,0.28347885,705.52,704.48,1.04672918]
[1735583001379,0.26098476,705.51,704.48,1.04672918]
[1735583001782,0.26098476,705.51,703.82,2.13707208]
[1735583001783,0.26098476,705.51,704.52,1.04672918]
[1735583002782,0.26098476,705.51,704.49,1.04672918]
[1735583003587,0.2834909,705.49,704.49,1.04672918]
[1735583003784,0.26098476,705.48,704.49,1.04672918]
[1735583004086,0.26098476,705.48,703.94,2.13707208]
[1735583004087,0.26104438,705.47,704.35,1.04672918]
[1735583004280,0.26104438,705.48,704.35,1.04672918]
[1735583004480,0.26104438,705.47,704.35,1.04672918]
[1735583004681,0.26104438,705.46,704.35,1.04672918]
[1735583005182,1.481697,705.47,704.35,1.04672918]
[1735583005382,1.481697,705.47,704.27,1.04672918]
[1735583006388,1.481697,705.47,703.73,2.13707208]
[1735583006389,1.481697,705.47,703.93,1.04672918]
[1735583007387,1.481697,705.47,703.91,1.04672918]
[1735583008587,1.481697,705.47,703.87,1.04672918]
[1735583009582,1.481697,705.47,703.88,1.04672918]
[1735583010890,1.481697,705.47,703.75,1.04672918]
[1735583012085,1.481697,705.47,703.78,1.04672918]
[1735583012992,1.481697,705.47,703.76,1.04672918]
[1735583013193,0.26107247,705.46,703.76,1.04672918]
[1735583014096,0.26107247,705.46,703.94,1.04672918]
[1735583014288,1.481697,705.47,703.94,1.04672918]
[1735583014595,0.26106035,705.46,703.94,1.04672918]
[1735583015190,0.26106239,705.45,703.95,1.04672918]
[1735583015395,0.26106239,705.44,703.95,1.04672918]
[1735583015588,0.26106239,705.46,703.95,1.04672918]
[1735583015794,0.26106239,705.45,703.95,1.04672918]
[1735583015993,0.26106239,705.45,703.39,0.75377113]
[1735583015994,0.26106239,705.46,704.1,1.04672918]
[1735583016193,1.481697,705.47,704.1,1.04672918]
[1735583016997,0.26100312,705.46,704.09,1.04672918]
[1735583017292,1.481697,705.47,704.09,1.04672918]
[1735583018093,0.26099732,705.46,704.12,1.04672918]
[1735583019393,0.26099732,705.46,704.21,1.04672918]
[1735583019794,0.26098996,705.45,704.21,1.04672918]
[1735583019993,0.26098996,705.46,704.21,1.04672918]
[1735583020196,1.481697,705.47,704.21,1.04672918]
[1735583020395,0.26098503,705.45,704.19,1.04672918]
[1735583020590,0.26098503,705.44,704.19,1.04672918]
[1735583020794,1.481697,705.47,704.19,1.04672918]
[1735583021195,0.26098898,705.46,704.19,1.04672918]
[1735583021597,0.26098898,705.46,704.18,1.04672918]
[1735583022997,0.26098898,705.46,704.19,1.04672918]
[1735583023595,0.283511,705.44,704.19,1.04672918]
[1735583023797,0.283511,705.44,704.2,1.04672918]
[1735583025001,0.283511,705.44,704.18,1.04672918]
[1735583026200,0.283511,705.44,704.29,1.04672918]
[1735583027101,0.283511,705.44,704.41,1.04672918]
[1735583028303,0.283511,705.44,704.4,1.04672918]
[1735583029299,0.283511,705.44,704.39,1.04672918]
[1735583030303,0.283511,705.44,704.38,1.04672918]
[1735583031404,0.283511,705.44,704.4,1.04672918]
[1735583032398,0.283511,705.44,704.37,1.04672918]
[1735583033107,0.283511,705.44,704.41,1.04672918]
[1735583035205,0.283511,705.44,704.38,1.04672918]
[1735583037406,0.283511,705.44,704.37,1.04672918]
[1735583038106,0.283511,705.44,704.38,1.04672918]
[1735583039208,0.283511,705.44,704.4,1.04672918]
[1735583040510,0.283511,705.44,704.51,1.04672918]
[1735583041506,0.283511,705.44,704.52,1.04672918]
[1735583042502,0.283511,705.44,704.51,1.04672918]
[1735583043701,0.283511,705.44,704.56,1.04672918]
[1735583044507,0.283511,705.44,704.53,1.04672918]
[1735583045503,0.283511,705.44,704.55,1.04672918]
[1735583046808,0.283511,705.44,704.49,1.04672918]
[1735583048015,0.283511,705.44,704.47,1.04672918]
[1735583048912,0.283511,705.44,704.51,1.04672918]
[1735583050111,0.283511,705.44,704.44,1.04672918]
[1735583051114,0.283511,705.44,704.56,1.04672918]
[1735583052014,0.283511,705.44,703.84,2.13707208]
[1735583052015,0.283511,705.44,704.39,1.04672918]
[1735583052916,0.283511,705.44,704.43,1.04672918]
[1735583053915,0.283511,705.44,704.44,1.04672918]
[1735583055018,0.283511,705.44,704.47,1.04672918]
[1735583057619,0.283511,705.44,704.46,1.04672918]
[1735583058716,0.283511,705.44,704.49,1.04672918]
[1735583060214,0.26101552,705.43,704.49,1.04672918]
[1735583060917,0.2610163,705.42,704.49,1.04672918]
[1735583061120,0.2610163,705.41,704.49,1.04672918]
[1735583061421,0.2610163,705.4,704.52,1.04672918]
[1735583061619,0.2610163,705.39,704.52,1.04672918]
[1735583061819,0.2610163,705.43,704.52,1.04672918]
[1735583062019,1.48165494,705.38,704.52,1.04672918]
[1735583062214,0.2610163,705.37,704.52,1.04672918]
[1735583062621,0.2610163,705.37,704.43,1.04672918]
[1735583062819,1.48165494,705.38,704.43,1.04672918]
[1735583063015,0.26102835,705.37,704.43,1.04672918]
[1735583063420,1.48165494,705.38,704.43,1.04672918]
[1735583063623,0.26103823,705.37,704.4,1.04672918]
[1735583063921,1.48165494,705.38,704.4,1.04672918]
[1735583064220,1.48165494,705.38,704.3,1.04672918]
[1735583065323,1.48165494,705.38,704.21,1.04672918]
[1735583065523,0.28354315,705.36,704.21,1.04672918]
[1735583066424,0.28354315,705.36,704.2,1.04672918]
[1735583067225,0.28354315,705.36,704.18,1.04672918]
[1735583069522,0.28354315,705.36,704.46,1.04672918]
[1735583070727,0.28354315,705.36,704.42,1.04672918]
[1735583071328,0.28354315,705.36,704.43,1.04672918]
[1735583071926,0.2610111,705.35,704.43,1.04672918]
[1735583072528,0.2610111,705.35,704.32,1.04672918]
[1735583073329,0.2610111,705.35,704.3,1.04672918]
[1735583074528,0.2610111,705.35,704.31,1.04672918]
[1735583075326,0.28354315,705.36,704.31,1.04672918]
[1735583075531,0.28354315,705.36,704.33,1.04672918]
[1735583076836,0.28354315,705.36,704.16,1.04672918]
[1735583077539,0.28354315,705.36,704.12,1.04672918]
[1735583078737,0.28354315,705.36,704.08,1.04672918]
[1735583079837,0.28354315,705.36,704.09,1.04672918]
[1735583080731,0.28354315,705.36,704.03,1.04672918]
[1735583081037,0.26106077,705.35,704.03,1.04672918]
[1735583082035,0.26106077,705.35,704.16,1.04672918]
[1735583083241,0.26106077,705.35,704.13,1.04672918]
[1735583084135,0.26106077,705.35,703.44,2.13707208]
[1735583084136,0.26106642,705.34,704.11,1.04672918]
[1735583084333,0.26106345,705.35,704.11,1.04672918]
[1735583084639,0.26106388,705.34,704.11,1.04672918]
[1735583084841,0.26107581,705.33,704.11,1.04672918]
[1735583085142,0.28354315,705.36,704.11,1.04672918]
[1735583085336,0.26107172,705.35,704.11,1.04672918]
[1735583085536,0.28354315,705.36,704.11,1.04672918]
[1735583085738,0.26104258,705.34,704.11,1.04672918]
[1735583086036,0.26104258,705.35,704.11,1.04672918]
[1735583086246,0.26104258,705.34,704.17,1.04672918]
[1735583086836,0.28354315,705.36,704.17,1.04672918]
[1735583087041,0.26104097,705.33,704.17,1.04672918]
[1735583087244,0.26104097,705.33,704.28,1.04672918]
[1735583087542,0.28356325,705.31,704.28,1.04672918]
[1735583088134,1.48179163,705.3,704.28,1.04672918]
[1735583088340,1.48179163,705.3,704.31,1.04672918]
[1735583089543,0.28357531,705.28,704.37,1.04672918]
[1735583090743,0.28357531,705.28,704.4,1.04672918]
[1735583091943,0.28357531,705.28,704.12,1.04672918]
[1735583091944,0.28357531,705.28,704.32,1.04672918]
[1735583093445,0.28357531,705.28,704.36,1.04672918]
[1735583094346,0.28357531,705.28,704.41,1.04672918]
[1735583095746,0.28357531,705.28,704.43,1.04672918]
[1735583096846,0.28357531,705.28,704.53,1.04672918]
[1735583097443,0.28357531,705.28,704.51,1.04672918]
[1735583098446,0.28357531,705.28,704.48,1.04672918]
[1735583099446,0.28357531,705.28,704.55,1.04672918]
[1735583100451,0.28357531,705.28,704.52,1.04672918]
[1735583102548,0.28357531,705.28,704.32,1.04672918]
[1735583103241,0.28357531,705.28,704.4,1.04672918]
[1735583104948,0.28357531,705.28,704.41,1.04672918]
[1735583105951,0.28357531,705.28,704.45,1.04672918]
[1735583107051,0.28357531,705.28,704.57,1.04672918]
[1735583108043,0.28357531,705.28,704.59,1.04672918]
[1735583109349,0.28357531,705.28,704.53,1.04672918]
[1735583110448,0.28357531,705.28,704.54,1.04672918]
[1735583111378,0.28357531,705.28,704.25,1.04672918]
[1735583111379,0.28357531,705.28,704.55,1.04672918]
[1735583112180,0.28357531,705.28,704.52,1.04672918]
[1735583113380,0.28357531,705.28,704.28,1.04672918]
[1735583115972,0.28357531,705.28,704.67,1.04672918]
[1735583117176,0.28357531,705.28,704.66,1.04672918]
[1735583118583,0.28357531,705.28,704.64,1.04672918]
[1735583119673,0.28357531,705.28,704.67,1.04672918]
[1735583120559,0.28357531,705.28,704.64,1.04672918]
[1735583121759,0.28357531,705.28,704.63,1.04672918]
[1735583122759,0.28357531,705.28,704.02,2.13707208]
[1735583122760,0.28357531,705.28,704.59,1.04672918]
[1735583123354,0.28357531,705.28,704.63,1.04672918]
[1735583124254,0.28357531,705.28,704.62,1.04672918]
[1735583125261,0.28357531,705.28,704.04,2.13707208]
[1735583125262,0.28357531,705.28,704.59,1.04672918]
[1735583125456,0.27754429,705.28,704.59,1.04672918]
[1735583126554,0.27754429,705.28,704.64,1.04672918]
[1735583127556,0.27754429,705.28,704.08,2.13707208]
[1735583127557,0.27754429,705.28,704.67,1.04672918]
[1735583128762,0.27754429,705.28,704.65,1.04672918]
[1735583129764,0.27754429,705.28,704.67,1.04672918]
[1735583130660,1.48102963,705.38,704.66,1.04672918]
[1735583131563,1.48102963,705.38,704.64,1.04672918]
[1735583131757,1.48102963,705.38,703.98,2.13707208]
[1735583131758,1.48102963,705.38,697.03,5.01342309]
[1735583131958,1.48102963,705.38,702.8,5.28014526]
[1735583132157,1.48102963,705.38,702.81,2.89087521]
[1735583132357,1.48102963,705.38,702.82,5.28014526]
[1735583132557,1.48102963,705.38,702.83,2.89087521]
[1735583132763,1.48102963,705.38,702.84,5.28014526]
[1735583133060,1.48102963,705.38,704.62,1.04378336]
[1735583135463,1.48102963,705.38,704.66,1.04378336]
[1735583135763,1.05594361,706.83,704.66,1.04378336]
[1735583136063,1.48090358,705.48,704.66,1.04378336]
[1735583136264,1.05594361,706.83,704.66,1.04378336]
[1735583136465,1.74090546,706.82,704.71,1.04378336]
[1735583136864,0.26077871,706.81,704.71,1.04378336]
[1735583137060,0.28300151,706.71,704.71,1.04378336]
[1735583137360,0.26077871,706.7,704.75,1.04378336]
[1735583137564,0.26077871,706.69,704.75,1.04378336]
[1735583137765,0.2607745,706.69,704.75,1.04378336]
[1735583137963,0.2607745,706.68,704.75,1.04378336]
[1735583138363,0.2607745,706.67,704.75,1.04378336]
[1735583138562,0.26075533,706.67,704.75,1.04378336]
[1735583138959,0.26075533,706.66,704.75,1.04378336]
[1735583139460,0.26075533,706.65,704.75,1.04378336]
[1735583139767,0.26075533,706.64,704.84,1.04378336]
[1735583140168,0.26075533,706.63,704.84,1.04378336]
[1735583140461,0.26074046,706.62,704.84,1.04378336]
[1735583140667,0.26074046,706.61,704.83,1.04378336]
[1735583141066,0.26074046,706.7,704.83,1.04378336]
[1735583141266,0.26074046,706.6,704.83,1.04378336]
[1735583141461,0.26074046,706.69,704.83,1.04378336]
[1735583141666,0.26074046,706.69,704.86,1.04378336]
[1735583141864,0.26074046,706.59,704.86,1.04378336]
[1735583142063,0.26074046,706.68,704.86,1.04378336]
[1735583142265,0.26074046,706.67,704.86,1.04378336]
[1735583142662,0.28300151,706.71,704.74,1.04378336]
[1735583142967,0.26073158,706.7,704.74,1.04378336]
[1735583143769,0.26073158,706.7,704.79,1.04378336]
[1735583145069,0.26073158,706.7,704.39,1.04378336]
[1735583145070,0.26073158,706.7,704.8,1.04378336]
[1735583145467,0.26075955,706.69,704.8,1.04378336]
[1735583145865,0.26075955,706.7,704.8,1.04378336]
[1735583146065,0.28300151,706.71,704.77,1.04378336]
[1735583146265,0.26078321,706.7,704.77,1.04378336]
[1735583146665,1.48011101,706.69,704.77,1.04378336]
[1735583146870,1.74089422,706.69,704.77,1.04378336]
[1735583147065,0.26078321,706.68,704.77,1.04378336]
[1735583147271,0.26078321,706.67,704.8,1.04378336]
[1735583147666,0.26078321,706.66,704.8,1.04378336]
[1735583147871,0.26078321,706.68,704.8,1.04378336]
[1735583148072,0.26078321,706.68,704.16,1.25254004]
[1735583148073,0.54377582,706.65,704.84,1.04378336]
[1735583148266,0.28302554,706.65,704.84,1.04378336]
[1735583148466,0.26075028,706.64,704.84,1.04378336]
[1735583148666,0.28303755,706.62,704.84,1.04378336]
[1735583149070,0.26075028,706.61,704.92,1.04378336]
[1735583149474,0.26075028,706.6,704.92,1.04378336]
[1735583149672,0.26075028,706.59,704.92,1.04378336]
[1735583149873,0.26075028,706.58,704.92,1.04378336]
[1735583150172,0.26075028,706.57,704.92,1.04378336]
[1735583150374,0.2830656,706.55,704.92,1.04378336]
[1735583150674,0.26075848,706.54,704.9,1.04378336]
[1735583151268,0.28307761,706.52,704.9,1.04378336]
[1735583151570,0.28307761,706.52,704.19,2.1310577]
[1735583151571,0.26075848,706.51,704.88,1.04378336]
[1735583151874,0.26075848,706.5,704.88,1.04378336]
[1735583152075,0.26075848,706.49,704.88,1.04378336]
[1735583152476,0.26075848,706.48,704.99,1.04378336]
[1735583152676,0.26075848,706.47,704.99,1.04378336]
[1735583153077,0.28307761,706.52,704.99,1.04378336]
[1735583153273,0.26083922,706.51,704.99,1.04378336]
[1735583153671,0.26083922,706.5,704.99,1.04378336]
[1735583154178,1.05594361,706.48,704.83,1.04378336]
[1735583154576,0.26083922,706.47,704.83,1.04378336]
[1735583154871,0.26083922,706.46,704.83,1.04378336]
[1735583155077,0.26083922,706.45,704.74,1.04378336]
[1735583155471,0.26083922,706.44,704.74,1.04378336]
[1735583155677,1.05594361,706.49,704.74,1.04378336]
[1735583155971,0.26086362,706.48,704.74,1.04378336]
[1735583156378,0.26086362,706.47,704.74,1.04378336]
[1735583156678,0.26086362,706.46,704.74,1.04378336]
[1735583157175,0.26086362,706.45,704.74,1.04378336]
[1735583157383,0.26086362,706.44,704.68,1.04378336]
[1735583157681,0.26086362,706.43,704.68,1.04378336]
[1735583158076,0.26086362,706.42,704.68,1.04378336]
[1735583158376,0.26086362,706.41,704.68,1.04378336]
[1735583158581,0.26086362,706.4,704.74,1.04378336]
[1735583158975,0.26086362,706.39,704.74,1.04378336]
[1735583159179,0.26086362,706.38,704.74,1.04378336]
[1735583159576,0.26086362,706.37,704.7,1.04378336]
[1735583159774,0.26086362,706.36,704.7,1.04378336]
[1735583159978,0.26086362,706.35,704.7,1.04378336]
[1735583160175,0.26086362,706.34,704.7,1.04378336]
[1735583160477,0.26086362,706.33,704.7,1.04378336]
[1735583160678,0.26086362,706.33,704.15,1.25254004]
[1735583160679,0.26084218,706.32,704.72,1.04378336]
[1735583161382,0.26084218,706.31,704.72,1.04378336]
[1735583161576,0.26086998,706.31,704.72,1.04378336]
[1735583161881,0.2831698,706.29,704.74,1.04378336]
[1735583162281,0.26086998,706.28,704.74,1.04378336]
[1735583162682,0.26087154,706.27,704.74,1.04378336]
[1735583162882,0.26087154,706.27,704.71,1.04378336]
[1735583163182,0.28318584,706.25,704.71,1.04378336]
[1735583163685,0.26087154,706.24,704.71,1.04378336]
[1735583163980,0.26087154,706.23,704.68,1.04378336]
[1735583164483,0.26087154,706.22,704.68,1.04378336]
[1735583164884,0.26087154,706.21,704.68,1.04378336]
[1735583165087,0.26087154,706.2,704.68,1.04378336]
[1735583165284,0.26087154,706.24,704.64,1.04378336]
[1735583165480,0.26087154,706.19,704.64,1.04378336]
[1735583165684,0.26087154,706.23,704.64,1.04378336]
[1735583165984,0.26087154,706.22,704.64,1.04378336]
[1735583166386,0.26087154,706.21,704.52,1.04378336]
[1735583166684,0.26087154,706.2,704.52,1.04378336]
[1735583166887,0.26087154,706.19,704.52,1.04378336]
[1735583167184,0.26087154,706.18,704.52,1.04378336]
[1735583167785,0.26090904,706.17,704.52,1.04378336]
[1735583167987,0.26090904,706.16,704.5,1.04378336]
[1735583168188,0.26090904,706.15,704.5,1.04378336]
[1735583168387,0.26092683,706.14,704.5,1.04378336]
[1735583168583,0.26092683,706.13,704.5,1.04378336]
[1735583168985,0.26092683,706.12,704.5,1.04378336]
[1735583169184,0.26092683,706.11,704.5,1.04378336]
[1735583169389,0.26092683,706.1,704.5,1.04378336]
[1735583169588,0.26092683,706.09,704.5,1.04378336]
[1735583169890,0.26092683,706.08,704.5,1.04378336]
[1735583170290,0.26092683,706.08,704.3,1.04378336]
[1735583170485,0.26092683,706.18,704.3,1.04378336]
[1735583170884,0.26092683,706.17,704.3,1.04378336]
[1735583171087,0.26092683,706.16,704.3,1.04378336]
[1735583171292,0.26092683,706.15,704.21,1.04378336]
[1735583171488,0.26092683,706.14,704.21,1.04378336]
[1735583171888,0.26092683,706.13,704.21,1.04378336]
[1735583172094,0.26092683,706.12,704.21,1.04378336]
[1735583172294,0.26092683,706.11,704.21,1.04378336]
[1735583172497,0.26092683,706.1,704.03,1.04378336]
[1735583172793,0.26092683,706.09,704.03,1.04378336]
[1735583172994,0.2610122,706.08,704.03,1.04378336]
[1735583173189,0.2610122,706.18,704.03,1.04378336]
[1735583173390,0.2610122,706.07,704.03,1.04378336]
[1735583173696,0.2610122,706.06,703.97,1.04378336]
[1735583173893,0.2610122,706.18,703.97,1.04378336]
[1735583174100,0.2610122,706.17,703.97,1.04378336]
[1735583174292,0.2610122,706.16,703.97,1.04378336]
[1735583174495,0.2610122,706.15,703.97,1.04378336]
[1735583174898,0.2610122,706.18,703.92,1.04378336]
[1735583175492,1.48089307,706.19,703.92,1.04378336]
[1735583175798,0.26109707,706.17,703.92,1.04378336]
[1735583175996,0.26109707,706.18,703.92,1.04378336]
[1735583176197,0.26109707,706.18,703.54,1.04378336]
[1735583176398,1.48089307,706.19,703.54,1.04378336]
[1735583176697,0.26109779,706.17,703.54,1.04378336]
[1735583177191,0.26109779,706.17,703.43,1.04378336]
[1735583177391,0.26110056,706.16,703.43,1.04378336]
[1735583178499,0.26110056,706.16,703.42,1.04378336]
[1735583179296,0.26110056,706.15,703.42,1.04378336]
[1735583179698,0.26110056,706.14,703.41,1.04378336]
[1735583180099,0.26110056,706.13,703.41,1.04378336]
[1735583180401,0.26110056,706.12,703.41,1.04378336]
[1735583180699,0.26108769,706.11,703.41,1.04378336]
[1735583180897,0.26108769,706.11,703.67,1.04378336]
[1735583181098,1.48199146,706.11,703.67,1.04378336]
[1735583181501,0.26108432,706.1,703.67,1.04378336]
[1735583181800,0.26108432,706.09,703.7,1.04378336]
[1735583181994,0.26108432,706.08,703.7,1.04378336]
[1735583182600,0.26108432,706.07,703.83,1.04378336]
[1735583183102,0.26108432,706.06,703.83,1.04378336]
[1735583183403,1.48199146,706.11,703.83,1.04378336]
[1735583183404,0.26102533,706.05,703.83,1.04378336]
[1735583183604,0.26102533,706.04,703.91,1.04378336]
[1735583183799,0.26102533,706.03,703.91,1.04378336]
[1735583184001,0.26101199,706.03,703.91,1.04378336]
[1735583184505,0.26101199,706.02,703.91,1.04378336]
[1735583184700,0.26101199,706.01,703.91,1.04378336]
[1735583185002,0.26101199,706.01,703.97,1.04378336]
[1735583185205,0.26101199,706.0,703.97,1.04378336]
[1735583185407,0.26101199,705.99,703.97,1.04378336]
[1735583185705,0.26101199,705.99,704.04,1.04378336]
[1735583185898,0.26101199,705.98,704.04,1.04378336]
[1735583186100,0.52201807,705.98,704.04,1.04378336]
[1735583186297,0.26100608,705.98,704.04,1.04378336]
[1735583186506,1.48199146,706.11,704.04,1.04378336]
[1735583186801,1.48199146,706.11,704.0,1.04378336]
[1735583187002,0.26102446,706.1,704.0,1.04378336]
[1735583187597,0.26102446,706.09,704.07,1.04378336]
[1735583188003,0.26102446,706.08,704.07,1.04378336]
[1735583188504,0.52204405,706.07,704.07,1.04378336]
[1735583188705,0.26101959,706.07,704.07,1.04378336]
[1735583188905,0.26101959,706.06,704.07,1.04378336]
[1735583189105,0.26101959,706.05,704.07,1.04378336]
[1735583189306,0.26101959,706.04,704.07,1.04378336]
[1735583189705,0.26101959,706.03,704.07,1.04378336]
[1735583190106,0.26101959,706.02,704.07,1.04378336]
[1735583190406,0.26101959,706.01,704.07,1.04378336]
[1735583190608,0.26101959,706.0,704.07,1.04378336]
[1735583190808,0.26101959,705.99,704.07,1.04378336]
[1735583191002,0.26101959,705.99,703.48,2.1310577]
[1735583191003,0.26101959,705.98,704.02,1.04378336]
[1735583191202,0.28318584,706.25,704.02,1.04378336]
[1735583191408,1.48150776,705.98,704.02,1.04378336]
[1735583191704,0.26102525,705.97,704.02,1.04378336]
[1735583192009,0.26103934,705.96,704.02,1.04378336]
[1735583192205,0.26103934,705.95,704.06,1.04378336]
[1735583192600,1.48166545,705.97,704.06,1.04378336]
[1735583192803,0.26102789,705.96,704.06,1.04378336]
[1735583193005,0.26102789,705.95,704.06,1.04378336]
[1735583193202,0.26102789,705.94,704.06,1.04378336]
[1735583193401,0.26102789,705.93,704.06,1.04378336]
[1735583193606,0.26102789,705.92,704.06,1.04378336]
[1735583193805,0.26102789,705.91,704.06,1.04378336]
[1735583194006,0.26104448,705.91,704.06,1.04378336]
[1735583194207,0.26104448,705.9,704.06,1.04378336]
[1735583194407,0.26104448,705.89,704.06,1.04378336]
[1735583194606,0.26104448,705.88,704.06,1.04378336]
[1735583194909,0.26104448,705.87,704.07,1.04378336]
[1735583195305,0.26104448,705.86,704.07,1.04378336]
[1735583195503,0.26104448,705.85,704.07,1.04378336]
[1735583195712,0.26104448,705.84,704.13,1.04378336]
[1735583195907,0.26104448,705.83,704.13,1.04378336]
[1735583196105,0.26104448,705.82,704.13,1.04378336]
[1735583196308,0.26104448,705.81,704.13,1.04378336]
[1735583196506,1.48166545,705.97,704.13,1.04378336]
[1735583196706,1.48166545,705.97,704.15,1.04378336]
[1735583196910,0.26104718,705.96,704.15,1.04378336]
[1735583197310,0.26104718,705.95,704.15,1.04378336]
[1735583197710,1.48166545,705.97,704.19,1.04378336]
[1735583197711,0.26104718,705.94,704.19,1.04378336]
[1735583198110,0.28331822,705.92,704.19,1.04378336]
[1735583198308,0.26104718,705.91,704.19,1.04378336]
[1735583198514,0.26104718,705.9,704.19,1.04378336]
[1735583198708,0.26104718,705.89,704.19,1.04378336]
[1735583198909,0.26104718,705.88,704.22,1.04378336]
[1735583199211,0.26104969,705.87,704.22,1.04378336]
[1735583199409,0.26104969,705.86,704.22,1.04378336]